bitfinex/quotes_BTCUSD_20230403
["timestamp","ask_amount","ask_price","bid_price","bid_amount"]
[1680528570475,0.26436244,28206.0,28205.0,0.02663587]
[1680528571349,0.26436244,28206.0,28205.0,0.07486578]
[1680528573149,0.26436244,28206.0,28205.0,0.06595691]
[1680528574461,0.26436244,28206.0,28205.0,0.03795691]
[1680528574660,0.26436244,28206.0,28205.0,0.06595691]
[1680528574873,0.26436244,28206.0,28205.0,0.03795691]
[1680528575307,0.26436244,28206.0,28205.0,0.02022991]
[1680528575527,0.26418244,28206.0,28205.0,0.02022991]
[1680528575739,0.26436244,28206.0,28205.0,0.02022991]
[1680528576377,0.26436244,28206.0,28205.0,0.04822991]
[1680528576816,0.18026244,28206.0,28205.0,0.04822991]
[1680528577033,0.18008244,28206.0,28205.0,0.02022991]
[1680528577248,0.18008244,28206.0,28205.0,0.04222991]
[1680528579810,0.26418244,28206.0,28205.0,0.04222991]
[1680528580032,0.26436244,28206.0,28205.0,0.04222991]
[1680528580497,0.61933741,28206.0,28205.0,0.04222991]
[1680528581390,0.61933741,28206.0,28205.0,0.022]
[1680528581627,0.18008244,28202.0,28201.0,0.017729]
[1680528582060,0.18008244,28202.0,28200.0,0.017729]
[1680528582481,0.18108244,28202.0,28201.0,0.04845043]
[1680528582905,0.18008244,28202.0,28201.0,0.02045043]
[1680528583117,0.18108244,28202.0,28201.0,0.02045043]
[1680528583338,0.18008244,28202.0,28201.0,0.02045043]
[1680528583564,0.18108244,28202.0,28201.0,0.04845043]
[1680528584684,0.18108244,28202.0,28201.0,0.06617943]
[1680528585352,0.18008244,28202.0,28201.0,0.03817943]
[1680528585570,0.18108244,28202.0,28201.0,0.06617943]
[1680528586013,0.001,28202.0,28201.0,0.44107196]
[1680528586248,0.001,28202.0,28201.0,0.75883549]
[1680528586471,0.001,28202.0,28201.0,0.89107196]
[1680528587389,0.18026244,28209.0,28201.0,0.86307196]
[1680528587599,0.18026244,28209.0,28205.0,0.01991756]
[1680528587825,0.18026244,28209.0,28207.0,0.053178]
[1680528589241,0.18026244,28209.0,28207.0,0.081178]
[1680528589518,0.18026244,28209.0,28207.0,0.053178]
[1680528590349,0.18026244,28209.0,28207.0,0.081178]
[1680528592734,0.17348244,28209.0,28207.0,0.081178]
[1680528594526,0.17348244,28209.0,28208.0,0.35497497]
[1680528594732,0.17348244,28209.0,28208.0,0.37269997]
[1680528594957,0.17348244,28209.0,28208.0,0.42080797]
[1680528595423,0.00581528,28210.0,28208.0,0.42080797]
[1680528595639,0.17348244,28209.0,28208.0,0.37269997]
[1680528596154,0.00581528,28210.0,28208.0,0.37269997]
[1680528596382,0.17348244,28209.0,28208.0,0.42073359]
[1680528597072,0.17348244,28209.0,28208.0,0.39273359]
[1680528597266,0.17348244,28209.0,28208.0,0.42073359]
[1680528597493,0.17348244,28209.0,28208.0,0.39273359]
[1680528597718,0.17348244,28209.0,28208.0,0.42073359]
[1680528600116,0.17348244,28209.0,28208.0,0.06575862]
[1680528600347,0.17929772,28210.0,28208.0,0.06575862]
[1680528600571,0.60825696,28210.0,28208.0,0.06575862]
[1680528600797,0.60825696,28210.0,28208.0,0.04803362]
[1680528600798,0.010002,28209.0,28208.0,0.04803362]
[1680528601486,0.094102,28209.0,28208.0,0.04803362]
[1680528601949,0.46680097,28209.0,28208.0,0.02003362]
[1680528602175,0.61680097,28209.0,28208.0,0.04803362]
[1680528602489,0.61680097,28209.0,28208.0,0.02003362]
[1680528602726,0.17348244,28203.0,28201.0,0.017729]
[1680528602977,0.07398427,28202.0,28201.0,0.00018]
[1680528603197,0.17348244,28203.0,28200.0,0.00018]
[1680528603427,0.17348244,28203.0,28201.0,0.017729]
[1680528603890,0.17348244,28203.0,28201.0,0.045729]
[1680528604105,0.17348244,28203.0,28201.0,0.017729]
[1680528604355,0.00018,28206.0,28202.0,0.35497497]
[1680528604598,0.084,28209.0,28203.0,0.100514]
[1680528604850,0.084,28209.0,28204.0,0.14197487]
[1680528605090,0.01022,28208.0,28204.0,0.15970187]
[1680528605315,0.17348244,28208.0,28204.0,0.04424456]
[1680528605536,0.17348244,28208.0,28204.0,0.017727]
[1680528605756,0.17348244,28208.0,28204.0,0.04424456]
[1680528605976,0.17348244,28208.0,28204.0,0.18621943]
[1680528606208,0.17348244,28208.0,28204.0,0.07242456]
[1680528606435,0.084,28209.0,28204.0,0.04436456]
[1680528606675,0.084,28209.0,28204.0,0.21439943]
[1680528606908,0.00581528,28210.0,28204.0,0.21439943]
[1680528606909,0.00581528,28210.0,28205.0,0.3]
[1680528607104,0.00581528,28210.0,28206.0,0.053179]
[1680528607358,0.00581528,28210.0,28206.0,0.053359]
[1680528607802,0.00581528,28210.0,28207.0,0.02651756]
[1680528608058,0.00581528,28210.0,28208.0,0.017725]
[1680528609033,0.00581528,28210.0,28208.0,0.032725]
[1680528609248,0.19669244,28212.0,28208.0,0.032785]
[1680528609497,0.17348244,28211.0,28208.0,0.032725]
[1680528609736,0.17348244,28211.0,28208.0,0.015]
[1680528609952,0.17348244,28211.0,28208.0,0.032725]
[1680528610182,0.36466697,28210.0,28208.0,0.015]
[1680528610656,0.15,28209.0,28208.0,0.015]
[1680528610903,0.50497497,28209.0,28203.0,0.00018]
[1680528611138,0.35497497,28209.0,28208.0,0.015]
[1680528611604,0.35497497,28209.0,28202.0,0.017729]
[1680528611605,0.17348244,28207.0,28202.0,0.017729]
[1680528611829,0.07398427,28206.0,28201.0,0.017909]
[1680528612269,0.009647,28205.0,28201.0,0.017909]
[1680528612496,0.07398427,28205.0,28201.0,0.017729]
[1680528612724,0.17348244,28207.0,28202.0,0.028]
[1680528612962,0.009525,28206.0,28203.0,0.017728]
[1680528613402,0.009525,28206.0,28203.0,0.017908]
[1680528613624,0.009525,28206.0,28203.0,0.017728]
[1680528614542,0.009525,28206.0,28203.0,0.045728]
[1680528614782,0.17348244,28207.0,28203.0,0.045728]
[1680528615477,0.17348244,28207.0,28203.0,0.017728]
[1680528615709,0.17348244,28207.0,28203.0,0.045728]
[1680528615938,0.17348244,28207.0,28203.0,0.017728]
[1680528616395,0.0841,28208.0,28203.0,0.15970287]
[1680528616623,0.17366244,28210.0,28203.0,0.15970287]
[1680528616864,0.17348244,28210.0,28204.0,0.14197487]
[1680528617112,0.17348244,28210.0,28205.0,0.053179]
[1680528617584,0.009371,28209.0,28205.0,0.017726]
[1680528617819,0.009371,28209.0,28205.0,0.017727]
[1680528618716,0.009371,28209.0,28205.0,0.045727]
[1680528619610,0.36434597,28209.0,28205.0,0.017727]
[1680528619838,0.007314,28208.0,28205.0,0.045727]
[1680528620312,0.43627324,28208.0,28205.0,0.045727]
[1680528620547,0.53782841,28207.0,28205.0,0.028]
[1680528620773,0.10914,28206.0,28205.0,0.028]
[1680528621008,0.44638897,28206.0,28200.0,0.01791]
[1680528621244,0.0841,28206.0,28205.0,0.028]
[1680528621514,0.093714,28206.0,28200.0,0.01773]
[1680528621748,0.093714,28206.0,28198.0,0.05296644]
[1680528621972,0.093714,28206.0,28200.0,0.01773]
[1680528622208,0.093714,28206.0,28205.0,0.01712904]
[1680528623154,0.17348244,28203.0,28200.0,0.04573]
[1680528623381,0.17348244,28203.0,28200.0,0.01773]
[1680528623603,0.13690244,28203.0,28200.0,0.01773]
[1680528623829,0.13678244,28203.0,28199.0,0.01773]
[1680528624061,0.13678244,28203.0,28197.0,0.00018]
[1680528624062,0.22088244,28203.0,28197.0,0.00018]
[1680528624367,0.07398427,28202.0,28201.0,0.01760031]
[1680528624641,0.44898297,28202.0,28201.0,0.01760031]
[1680528625194,0.094008,28202.0,28201.0,0.01760031]
[1680528625439,0.44898297,28202.0,28201.0,0.01760031]
[1680528625879,0.59898297,28202.0,28201.0,0.01760031]
[1680528626105,0.59898297,28202.0,28195.0,0.00018]
[1680528626106,0.13678244,28199.0,28195.0,0.00018]
[1680528626334,0.07398427,28198.0,28195.0,0.017733]
[1680528626810,0.35497497,28198.0,28194.0,0.00908868]
[1680528627046,0.35497497,28197.0,28194.0,0.02664268]
[1680528627284,0.35497497,28197.0,28196.0,0.01645983]
[1680528627511,0.43897497,28197.0,28196.0,0.01645983]
[1680528628833,0.43897497,28197.0,28196.0,0.01845983]
[1680528629058,0.43897497,28197.0,28196.0,0.002]
[1680528629484,0.43897497,28197.0,28193.0,0.08113156]
[1680528629708,0.0838,28196.0,28193.0,0.06339756]
[1680528629940,0.35497497,28195.0,28193.0,0.06339756]
[1680528630168,0.35497497,28195.0,28193.0,0.00018]
[1680528630404,0.0841,28194.0,28192.0,0.0211]
[1680528630632,0.43877497,28193.0,28192.0,0.0211]
[1680528632006,0.43877497,28193.0,28192.0,0.0301]
[1680528632487,0.43877497,28193.0,28192.0,0.0211]
[1680528632714,0.43877497,28193.0,28192.0,0.0231]
[1680528633010,0.43877497,28193.0,28192.0,0.0211]
[1680528633236,0.43877497,28193.0,28192.0,0.0231]
[1680528634401,0.43877497,28193.0,28192.0,0.0211]
[1680528634640,0.44377497,28193.0,28192.0,0.0221]
[1680528635018,0.43877497,28193.0,28192.0,0.0211]
[1680528635193,0.44377497,28193.0,28192.0,0.0221]
[1680528635417,0.43877497,28193.0,28192.0,0.0211]
[1680528635637,0.58055741,28193.0,28192.0,0.0221]
[1680528635841,0.57555741,28193.0,28192.0,0.0211]
[1680528636291,0.58055741,28193.0,28192.0,0.0221]
[1680528636511,0.14178244,28193.0,28192.0,0.0221]
[1680528636742,0.005,28193.0,28192.0,0.0221]
[1680528636947,0.005,28193.0,28192.0,0.03909533]
[1680528637163,0.0838,28195.0,28192.0,0.03809533]
[1680528637383,0.0891,28193.0,28192.0,0.03909533]
[1680528637604,0.44407497,28193.0,28192.0,0.03809533]
[1680528637826,0.43907497,28193.0,28192.0,0.05309533]
[1680528638077,0.43907497,28193.0,28192.0,0.08431756]
[1680528638312,0.44307497,28193.0,28192.0,0.08431756]
[1680528638755,0.43907497,28193.0,28192.0,0.08431756]
[1680528638987,0.44307497,28193.0,28192.0,0.08431756]
[1680528639202,0.43907497,28193.0,28192.0,0.08431756]
[1680528639628,0.35497497,28193.0,28192.0,0.10205256]
[1680528639841,0.35497497,28193.0,28192.0,0.08431756]
[1680528640078,0.35497497,28193.0,28192.0,0.10129449]
[1680528640288,0.35497497,28193.0,28192.0,0.10147449]
[1680528640504,0.35897497,28193.0,28192.0,0.10147449]
[1680528640723,0.44297497,28193.0,28192.0,0.10129449]
[1680528640934,0.43897497,28193.0,28192.0,0.10129449]
[1680528641152,0.43897497,28193.0,28192.0,0.11029449]
[1680528641369,0.43897497,28193.0,28192.0,0.10129449]
[1680528641583,0.44297497,28193.0,28192.0,0.10129449]
[1680528641815,0.43897497,28193.0,28192.0,0.10129449]
[1680528642049,0.44397497,28193.0,28192.0,0.08531756]
[1680528643378,0.43897497,28193.0,28192.0,0.08431756]
[1680528643591,0.44397497,28193.0,28192.0,0.08531756]
[1680528643795,0.43897497,28193.0,28192.0,0.08431756]
[1680528644014,0.44397497,28193.0,28192.0,0.08531756]
[1680528644637,0.44389368,28193.0,28192.0,0.0221]
[1680528645988,0.46162768,28193.0,28192.0,0.0221]
[1680528646195,0.45662768,28193.0,28192.0,0.0211]
[1680528646441,0.46162768,28193.0,28192.0,0.0231]
[1680528648334,0.47012768,28193.0,28192.0,0.0231]
[1680528648783,0.62012768,28193.0,28192.0,0.0231]
[1680528650804,0.99382768,28193.0,28192.0,0.0231]
[1680528650999,1.07742768,28193.0,28192.0,0.0231]
[1680528651891,1.39702768,28193.0,28192.0,0.0231]
[1680528652144,1.58622768,28193.0,28192.0,0.0211]
[1680528652381,1.61340768,28193.0,28192.0,0.0221]
[1680528652840,1.58640768,28193.0,28192.0,0.0211]
[1680528653085,1.93300768,28193.0,28192.0,0.0221]
[1680528653327,2.15733809,28193.0,28192.0,0.0211]
[1680528653589,2.18433809,28193.0,28192.0,0.0221]
[1680528653818,2.18433809,28193.0,28192.0,0.0211]
[1680528653819,2.15733809,28193.0,28192.0,0.0211]
[1680528654052,2.18433809,28193.0,28192.0,0.0221]
[1680528654751,1.93300768,28193.0,28192.0,0.0221]
[1680528654989,1.61350768,28193.0,28192.0,0.0221]
[1680528658704,1.93310768,28193.0,28192.0,0.0221]
[1680528664029,3.5147174,28193.0,28192.0,0.0221]
[1680528664251,4.2147174,28193.0,28192.0,0.0221]
[1680528664702,3.37771738,28193.0,28192.0,0.0221]
[1680528665157,3.22771738,28193.0,28192.0,0.02200338]
[1680528665385,3.22753738,28193.0,28192.0,0.02200338]
[1680528665841,3.14292062,28193.0,28192.0,0.02200338]
[1680528666297,0.5237,28192.0,28191.0,0.0211]
[1680528666521,2.61084112,28192.0,28191.0,0.0211]
[1680528667396,2.52618921,28192.0,28191.0,0.0211]
[1680528667623,2.55318921,28192.0,28191.0,0.0221]
[1680528667847,2.63784112,28192.0,28191.0,0.0221]
[1680528668222,0.51048244,28190.0,28189.0,0.0211]
[1680528668419,2.06519577,28190.0,28189.0,0.0211]
[1680528668600,1.98980577,28190.0,28189.0,0.0211]
[1680528668820,2.07445768,28190.0,28189.0,0.0211]
[1680528669045,2.23396768,28190.0,28189.0,0.0211]
[1680528669685,2.23396768,28190.0,28186.0,0.0211]
[1680528669686,0.13678244,28187.0,28186.0,0.0211]
[1680528669883,1.37852641,28187.0,28186.0,0.0211]
[1680528670088,1.67852641,28187.0,28186.0,0.0211]
[1680528670833,1.63457241,28187.0,28186.0,0.0211]
[1680528671048,1.60757241,28187.0,28186.0,0.0211]
[1680528671261,1.82911096,28187.0,28186.0,0.0211]
[1680528671952,1.35975741,28187.0,28186.0,0.0211]
[1680528672172,1.13917497,28187.0,28186.0,0.0211]
[1680528672404,0.38197497,28187.0,28186.0,0.16299681]
[1680528672631,0.38197497,28187.0,28186.0,0.02128]
[1680528672873,0.38197497,28187.0,28186.0,0.0211]
[1680528673098,0.35497497,28187.0,28186.0,0.0211]
[1680528673324,0.38197497,28187.0,28186.0,0.0211]
[1680528673534,0.35497497,28187.0,28186.0,0.0211]
[1680528673752,0.38197497,28187.0,28186.0,0.0211]
[1680528673968,0.42858247,28187.0,28186.0,0.0211]
[1680528674171,0.65167497,28187.0,28186.0,0.0211]
[1680528674641,0.66667497,28187.0,28186.0,0.0211]
[1680528675523,0.62467497,28187.0,28186.0,0.0211]
[1680528675737,0.65167497,28187.0,28186.0,0.0211]
[1680528675961,0.62467497,28187.0,28186.0,0.0211]
[1680528676179,0.65167497,28187.0,28186.0,0.0211]
[1680528679428,0.65166497,28187.0,28186.0,0.0211]
[1680528681958,0.76432527,28187.0,28186.0,0.0211]
[1680528682188,1.96511321,28187.0,28186.0,0.0211]
[1680528682424,3.25145255,28187.0,28186.0,0.0211]
[1680528683820,3.57105255,28187.0,28186.0,0.0211]
[1680528684057,3.54405255,28187.0,28186.0,0.0211]
[1680528684288,3.37371117,28187.0,28186.0,0.0211]
[1680528684537,3.34671117,28187.0,28186.0,0.0211]
[1680528684758,3.45839225,28187.0,28186.0,0.0211]
[1680528684989,3.43139225,28187.0,28186.0,0.0211]
[1680528685217,3.94065745,28187.0,28186.0,0.0211]
[1680528685442,3.91365745,28187.0,28186.0,0.0211]
[1680528685722,3.05522807,28187.0,28186.0,0.0211]
[1680528686414,3.75522807,28187.0,28186.0,0.0211]
[1680528686855,3.85524969,28187.0,28186.0,0.0211]
[1680528687100,3.88224969,28187.0,28186.0,0.0211]
[1680528687325,4.11043631,28187.0,28186.0,0.0211]
[1680528687548,4.23745793,28187.0,28186.0,0.0211]
[1680528687794,4.11043631,28187.0,28186.0,0.0211]
[1680528688797,4.23745793,28187.0,28186.0,0.0211]
[1680528689884,4.11043631,28187.0,28186.0,0.0211]
[1680528690099,4.08343631,28187.0,28186.0,0.0211]
[1680528690323,4.08343631,28187.0,28186.0,0.02101317]
[1680528690541,4.12819984,28187.0,28186.0,0.02101317]
[1680528690770,4.17050456,28187.0,28186.0,0.02101317]
[1680528691214,3.81529632,28187.0,28186.0,0.02101317]
[1680528691885,3.89889632,28187.0,28186.0,0.02101317]
[1680528692594,3.87189632,28187.0,28186.0,0.02101317]
[1680528692811,4.06881192,28187.0,28186.0,0.02101317]
[1680528693023,3.89889632,28187.0,28186.0,0.02101317]
[1680528693235,0.7368,28186.0,28185.0,0.00266096]
[1680528693459,3.09685731,28186.0,28185.0,0.00266096]
[1680528693672,0.5237,28185.0,28184.0,0.0211]
[1680528693898,1.58690316,28185.0,28184.0,0.0211]
[1680528694744,1.71408574,28185.0,28184.0,0.0211]
[1680528695351,2.06929398,28185.0,28184.0,0.0211]
[1680528695519,2.09629398,28185.0,28184.0,0.0211]
[1680528695716,2.06929398,28185.0,28184.0,0.0211]
[1680528696009,2.09629398,28185.0,28184.0,0.0211]
[1680528696228,1.74108574,28185.0,28184.0,0.0211]
[1680528696891,1.54902957,28185.0,28184.0,0.0211]
[1680528697107,1.96810284,28185.0,28184.0,0.0211]
[1680528697564,1.54902957,28185.0,28184.0,0.0211]
[1680528697775,1.98585652,28185.0,28184.0,0.0211]
[1680528698425,1.95885652,28185.0,28184.0,0.0211]
[1680528698675,1.5667931,28185.0,28184.0,0.0211]
[1680528698896,1.69410817,28185.0,28184.0,0.0211]
[1680528699350,1.66710817,28185.0,28184.0,0.0211]
[1680528699580,2.20642904,28185.0,28184.0,0.0211]
[1680528699770,2.68580012,28185.0,28184.0,0.0211]
[1680528700021,2.71280012,28185.0,28184.0,0.0211]
[1680528700463,2.58548505,28185.0,28184.0,0.0211]
[1680528700701,0.3737,28183.0,28182.0,0.0211]
[1680528700929,1.45856197,28183.0,28182.0,0.0211]
[1680528701692,0.76685619,28183.0,28182.0,0.16299681]
[1680528701866,0.76685619,28183.0,28182.0,0.039021]
[1680528701867,0.38197497,28183.0,28182.0,0.039021]
[1680528702084,0.39175697,28183.0,28182.0,0.0211]
[1680528702738,0.36475697,28183.0,28182.0,0.0211]
[1680528702954,0.36475697,28183.0,28182.0,0.02128]
[1680528703171,0.39175697,28183.0,28182.0,0.02128]
[1680528704223,0.37325697,28183.0,28182.0,0.02128]
[1680528704628,0.38125697,28183.0,28182.0,0.02128]
[1680528704833,0.37325697,28183.0,28182.0,0.02128]
[1680528705076,0.40025697,28183.0,28182.0,0.02128]
[1680528705280,0.37325697,28183.0,28182.0,0.02128]
[1680528705487,0.40025697,28183.0,28182.0,0.02128]
[1680528707589,0.77395697,28183.0,28182.0,0.02128]
[1680528707791,0.79169797,28183.0,28182.0,0.02128]
[1680528708433,1.08889797,28183.0,28182.0,0.02128]
[1680528708648,1.38889797,28183.0,28182.0,0.0211]
[1680528709084,1.47377919,28183.0,28182.0,0.0211]
[1680528709296,1.38889797,28183.0,28182.0,0.0211]
[1680528709499,1.59438385,28183.0,28182.0,0.0211]
[1680528709724,3.56963591,28183.0,28182.0,0.0211]
[1680528709974,3.73997591,28183.0,28182.0,0.0211]
[1680528710205,3.79751933,28183.0,28182.0,0.0211]
[1680528710426,3.56963591,28183.0,28182.0,0.0211]
[1680528710640,3.54263591,28183.0,28182.0,0.0211]
[1680528710862,3.56963591,28183.0,28182.0,0.0211]
[1680528711072,3.54263591,28183.0,28182.0,0.0211]
[1680528711338,4.26963591,28183.0,28182.0,0.0211]
[1680528711540,4.52451933,28183.0,28182.0,0.0211]
[1680528712619,4.06415003,28183.0,28182.0,0.16299681]
[1680528712830,0.39193697,28183.0,28182.0,0.08431756]
[1680528713060,0.38197497,28183.0,28182.0,0.30205856]
[1680528713287,0.38197497,28183.0,28182.0,0.30223856]
[1680528713519,0.38197497,28183.0,28182.0,0.35189356]
[1680528713739,0.35497497,28183.0,28182.0,0.35189356]
[1680528713968,0.38197497,28183.0,28182.0,0.38535758]
[1680528714389,0.35497497,28183.0,28182.0,0.33570258]
[1680528714606,0.35597497,28183.0,28182.0,0.38527158]
[1680528714840,0.35497497,28183.0,28182.0,0.38227158]
[1680528715066,0.35597497,28183.0,28182.0,0.38527158]
[1680528717010,0.35597497,28183.0,28182.0,0.373051]
[1680528717217,0.35597497,28183.0,28182.0,0.370051]
[1680528717218,0.35497497,28183.0,28182.0,0.370051]
[1680528717457,0.35597497,28183.0,28182.0,0.373051]
[1680528717723,0.35515497,28183.0,28182.0,0.36968134]
[1680528717955,0.35615497,28183.0,28182.0,0.37268134]
[1680528718826,0.35597497,28183.0,28182.0,0.37286134]
[1680528719263,6e-05,28184.0,28182.0,2.15753312]
[1680528719483,0.00018,28191.0,28190.0,0.26321756]
[1680528719711,0.00018,28191.0,28190.0,0.57684937]
[1680528719931,0.00018,28193.0,28190.0,0.57684937]
[1680528720156,0.02128,28194.0,28193.0,0.2]
[1680528720394,6e-05,28194.0,28193.0,0.92016637]
[1680528720637,0.08484588,28198.0,28197.0,0.06321756]
[1680528720638,6e-05,28198.0,28197.0,0.06321756]
[1680528720858,0.00014,28200.0,28197.0,0.43571637]
[1680528721080,0.35497497,28200.0,28199.0,0.0841]
[1680528721303,0.35511497,28200.0,28198.0,0.0841]
[1680528721511,0.35497497,28199.0,28198.0,0.0841]
[1680528721754,0.35497497,28199.0,28197.0,0.06321756]
[1680528721755,0.15,28198.0,28197.0,0.06321756]
[1680528721985,1.08294797,28198.0,28197.0,0.06321756]
[1680528722239,1.08294797,28198.0,28193.0,0.00018]
[1680528722438,0.74463797,28197.0,28191.0,0.08378]
[1680528722664,0.4582895,28196.0,28191.0,0.0836]
[1680528722895,0.17734,28194.0,28191.0,0.0836]
[1680528723127,0.74639697,28193.0,28192.0,0.06321756]
[1680528723355,0.74639697,28193.0,28191.0,0.00018]
[1680528723581,0.74639697,28193.0,28191.0,0.07021756]
[1680528723582,0.007463,28192.0,28191.0,0.07021756]
[1680528723817,0.37093797,28192.0,28191.0,0.06321756]
[1680528724064,0.74463797,28192.0,28191.0,0.06321756]
[1680528724498,0.76237297,28192.0,28191.0,0.06321756]
[1680528724939,0.90489986,28192.0,28191.0,0.06321756]
[1680528725160,1.42013986,28192.0,28191.0,0.06321756]
[1680528725429,1.36031885,28192.0,28191.0,0.06321756]
[1680528725667,1.36231885,28192.0,28191.0,0.06321756]
[1680528725891,0.3631,28191.0,28183.0,0.00018]
[1680528726123,0.3631,28191.0,28182.0,0.02091034]
[1680528726124,0.92378197,28189.0,28182.0,0.02091034]
[1680528726337,0.0913305,28188.0,28182.0,0.02091034]
[1680528726557,0.36419697,28187.0,28186.0,0.06321756]
[1680528726781,0.97723497,28187.0,28184.0,0.00018]
[1680528727000,1.20328497,28185.0,28184.0,0.06321756]
[1680528727236,1.57422497,28185.0,28184.0,0.06321756]
[1680528728330,1.57422497,28185.0,28184.0,0.06421756]
[1680528728331,1.60122497,28185.0,28184.0,0.06421756]
[1680528728550,1.57422497,28185.0,28184.0,0.06321756]
[1680528728998,1.7795841,28185.0,28184.0,0.06421756]
[1680528729425,1.88233351,28185.0,28184.0,0.06421756]
[1680528729651,1.88233351,28185.0,28184.0,0.001]
[1680528730077,1.79748763,28185.0,28184.0,0.001]
[1680528730300,1.6191285,28185.0,28184.0,0.001]
[1680528730574,0.8202,28184.0,28183.0,0.06321756]
[1680528730811,1.44311797,28184.0,28183.0,0.06321756]
[1680528731027,1.4608815,28184.0,28183.0,0.06321756]
[1680528731664,1.4827415,28184.0,28183.0,0.06421756]
[1680528732098,1.68062582,28184.0,28183.0,0.06421756]
[1680528732319,1.4827415,28184.0,28183.0,0.06421756]
[1680528733435,1.46497797,28184.0,28183.0,0.06421756]
[1680528734752,0.50497497,28183.0,28166.0,0.0211]
[1680528734996,0.50497497,28183.0,28165.0,0.34564661]
[1680528734997,0.3737,28167.0,28165.0,0.049486]
[1680528735212,1.20212547,28166.0,28165.0,0.049486]
[1680528735442,0.5868,28164.0,28155.0,0.2]
[1680528735664,0.3737,28159.0,28155.0,0.20018]
[1680528735922,0.3737,28159.0,28155.0,0.00018]
[1680528735923,0.0841,28157.0,28155.0,0.00018]
[1680528736138,0.0841,28157.0,28156.0,0.02534453]
[1680528736352,0.102259,28157.0,28156.0,0.02534453]
[1680528736827,0.129259,28157.0,28156.0,0.02534453]
[1680528737096,0.129259,28157.0,28152.0,0.0211]
[1680528737097,0.65631657,28157.0,28152.0,0.0211]
[1680528737289,0.1347,28153.0,28152.0,0.0211]
[1680528737512,1.20512247,28153.0,28152.0,0.0211]
[1680528737743,1.50526247,28153.0,28152.0,0.0211]
[1680528737951,1.62989497,28153.0,28152.0,0.0211]
[1680528738185,0.66361497,28153.0,28152.0,0.0211]
[1680528738621,0.68137497,28153.0,28152.0,0.0211]
[1680528738840,1.22439497,28153.0,28152.0,0.0211]
[1680528739058,1.25139497,28153.0,28152.0,0.0211]
[1680528739287,1.60170347,28153.0,28152.0,0.0211]
[1680528739505,1.62870347,28153.0,28152.0,0.0211]
[1680528739756,1.43749497,28153.0,28152.0,0.0211]
[1680528739988,0.2841,28152.0,28150.0,0.0211]
[1680528740212,0.37273597,28151.0,28150.0,0.0211]
[1680528740439,0.65497497,28151.0,28150.0,0.0211]
[1680528740651,0.68123597,28151.0,28150.0,0.0211]
[1680528740878,0.35497497,28151.0,28150.0,0.37203812]
[1680528741115,0.35503497,28151.0,28150.0,0.37215812]
[1680528741360,0.35497497,28151.0,28150.0,0.37221812]
[1680528741833,0.38197497,28151.0,28150.0,0.02128]
[1680528742064,0.35497497,28151.0,28150.0,0.0211]
[1680528742278,0.38197497,28151.0,28150.0,0.0211]
[1680528742506,1.00978457,28151.0,28150.0,0.0211]
[1680528742726,1.02754557,28151.0,28150.0,0.0211]
[1680528742938,1.34254557,28151.0,28150.0,0.0211]
[1680528743166,1.32754557,28151.0,28150.0,0.0211]
[1680528743372,1.29503597,28151.0,28150.0,0.0211]
[1680528743847,1.26803597,28151.0,28150.0,0.0211]
[1680528744703,1.29503597,28151.0,28150.0,0.0211]
[1680528744909,1.26803597,28151.0,28150.0,0.0211]
[1680528745355,1.29503597,28151.0,28150.0,0.0211]
[1680528745576,1.76401598,28151.0,28150.0,0.0211]
[1680528745804,1.80877951,28151.0,28150.0,0.0211]
[1680528746019,0.2131,28148.0,28145.0,0.0211]
[1680528746289,1.25415497,28146.0,28145.0,0.0211]
[1680528746516,1.27191897,28146.0,28145.0,0.0211]
[1680528746729,1.58041897,28146.0,28145.0,0.0211]
[1680528747385,1.42791497,28146.0,28145.0,0.0211]
[1680528747598,0.66347497,28146.0,28145.0,0.0211]
[1680528747825,0.69047497,28146.0,28145.0,0.0211]
[1680528750189,0.38197497,28146.0,28145.0,0.038865]
[1680528750394,0.027,28146.0,28145.0,0.189045]
[1680528750613,0.027,28146.0,28145.0,0.237406]
[1680528750824,0.027,28146.0,28145.0,0.189045]
[1680528751033,0.04219999,28149.0,28146.0,0.2]
[1680528751278,0.39717496,28149.0,28146.0,0.35984081]
[1680528751484,0.39717496,28149.0,28147.0,0.15]
[1680528751690,0.39717496,28149.0,28147.0,0.167943]
[1680528752127,0.04219999,28149.0,28147.0,0.167943]
[1680528752550,0.04319999,28149.0,28147.0,0.15018]
[1680528752780,0.04319999,28149.0,28148.0,0.30324124]
[1680528752998,0.04319999,28149.0,28148.0,0.30342124]
[1680528753439,0.04219999,28149.0,28148.0,0.30342124]
[1680528753648,0.04219999,28149.0,28148.0,0.45588424]
[1680528753649,0.04419999,28149.0,28148.0,0.45588424]
[1680528753883,0.04219999,28149.0,28148.0,0.45588424]
[1680528754117,0.04319999,28149.0,28148.0,0.50031291]
[1680528754343,0.04219999,28149.0,28148.0,0.49431291]
[1680528754555,0.04519999,28149.0,28148.0,0.50031291]
[1680528754985,0.04219999,28149.0,28148.0,0.49431291]
[1680528755205,0.04519999,28149.0,28148.0,0.50031291]
[1680528755437,0.04519999,28149.0,28148.0,0.49431291]
[1680528755665,0.04519999,28149.0,28148.0,0.54388391]
[1680528755886,0.04519999,28149.0,28148.0,0.17330867]
[1680528756107,0.04519999,28149.0,28148.0,0.19107167]
[1680528756330,0.04819999,28149.0,28148.0,0.19707167]
[1680528756596,0.04219999,28149.0,28148.0,0.19107167]
[1680528756817,0.04419999,28149.0,28148.0,0.19707167]
[1680528757050,0.04219999,28149.0,28148.0,0.17330867]
[1680528757266,0.04419999,28149.0,28148.0,0.17930867]
[1680528757488,0.04419999,28149.0,28148.0,0.04460867]
[1680528757489,0.39917496,28149.0,28148.0,0.04460867]
[1680528757706,0.39917496,28149.0,28148.0,0.03860867]
[1680528757707,0.40631396,28149.0,28148.0,0.03860867]
[1680528757925,0.40831396,28149.0,28148.0,0.04460867]
[1680528758134,0.40831396,28149.0,28148.0,0.03860867]
[1680528758135,0.40631396,28149.0,28148.0,0.03860867]
[1680528758358,0.40831396,28149.0,28148.0,0.04460867]
[1680528759236,0.05133899,28149.0,28148.0,0.50304879]
[1680528759458,0.04319999,28149.0,28148.0,0.64374879]
[1680528759675,0.04219999,28149.0,28148.0,0.68598779]
[1680528759901,0.04319999,28149.0,28148.0,0.69098779]
[1680528760107,0.04219999,28149.0,28148.0,0.68598779]
[1680528760311,0.04419999,28149.0,28148.0,0.64374879]
[1680528760751,0.04219999,28149.0,28148.0,0.63774879]
[1680528760971,0.04519999,28149.0,28148.0,0.64374879]